bitfinex/quotes_ETHUSD_20240614
["timestamp","ask_amount","ask_price","bid_price","bid_amount"]
[1718350049597,0.698,3516.9,3516.3,0.05687519]
[1718350049817,0.698,3516.9,3516.4,2.4764]
[1718350049995,0.698,3516.7,3516.5,0.05338389]
[1718350051603,0.698,3516.9,3516.5,0.05338389]
[1718350052797,0.698,3516.7,3516.5,0.05338389]
[1718350060755,0.698,3516.7,3516.0,2.3315]
[1718350060911,0.698,3516.7,3516.5,0.03728827]
[1718350061224,1.07490919,3516.7,3516.5,0.04661034]
[1718350061424,1.07490919,3516.7,3516.0,2.3315]
[1718350061735,0.698,3516.7,3516.1,0.04187822]
[1718350065433,0.07109152,3516.9,3516.1,0.04187822]
[1718350065632,0.698,3516.7,3516.1,0.04187822]
[1718350066144,0.698,3516.5,3516.1,0.04187822]
[1718350070634,0.698,3516.5,3516.1,0.09875335]
[1718350071049,0.698,3516.5,3516.1,0.04187822]
[1718350074067,0.698,3516.3,3516.1,0.04187822]
[1718350074351,0.698,3516.3,3516.0,2.3315]
[1718350074730,0.698,3516.3,3516.1,0.03779204]
[1718350075331,0.698,3516.3,3515.8,2.3589]
[1718350075541,0.698,3516.3,3516.2,0.03769151]
[1718350075752,0.698,3516.3,3515.8,2.3589]
[1718350076019,0.698,3516.3,3516.2,0.034265]
[1718350076213,0.698,3516.3,3515.8,2.3589]
[1718350076450,0.698,3516.3,3516.2,0.03433815]
[1718350076639,0.698,3516.3,3515.8,2.3589]
[1718350077154,0.698,3516.3,3515.9,0.03807784]
[1718350078114,0.698,3516.3,3515.6,2.4008]
[1718350078422,0.76909892,3516.3,3515.6,2.4008]
[1718350078620,0.76909892,3516.3,3515.7,0.03827895]
[1718350079729,2.3466,3516.4,3515.7,0.03827895]
[1718350080052,0.698,3516.2,3515.7,0.03827895]
[1718350080215,2.3466,3516.4,3515.7,0.03827895]
[1718350080558,0.698,3515.8,3515.7,0.03827895]
[1718350080742,0.698,3515.8,3515.6,2.3709]
[1718350080919,0.698,3515.8,3515.7,0.03827895]
[1718350081465,3.0,3516.2,3515.7,0.03827895]
[1718350081684,0.698,3516.0,3515.7,0.03827895]
[1718350083351,0.07110362,3516.4,3515.7,0.03827895]
[1718350083551,0.698,3516.0,3515.7,0.03827895]
[1718350083755,3.0,3516.5,3515.8,2.3436]
[1718350083957,0.698,3516.4,3515.9,0.05687788]
[1718350084175,0.698,3516.4,3515.9,0.09495572]
[1718350084948,3.0,3516.7,3516.0,2.4969]
[1718350085137,0.698,3516.8,3516.2,2.4969]
[1718350085643,0.698,3516.8,3516.3,0.04186186]
[1718350086381,0.07109148,3517.1,3516.3,0.04186186]
[1718350086689,0.698,3516.7,3516.3,0.04186186]
[1718350087044,0.698,3516.7,3516.2,2.4969]
[1718350087345,0.698,3516.7,3516.3,0.04195597]
[1718350087771,0.28303632,3517.9,3516.5,2.3751]
[1718350087946,0.07107504,3517.8,3516.9,2.3751]
[1718350088141,0.698,3517.7,3517.0,0.05685989]
[1718350089150,0.698,3517.7,3517.0,0.02885989]
[1718350089456,2.3836,3518.4,3517.0,0.02885989]
[1718350089457,2.3836,3518.4,3517.0,0.34110062]
[1718350089648,0.698,3517.9,3517.1,2.4174]
[1718350089845,0.698,3517.9,3517.2,0.030884]
[1718350090154,0.698,3517.8,3517.2,0.030884]
[1718350091564,3.07106919,3518.3,3517.2,0.030884]
[1718350091768,0.698,3517.9,3517.2,0.030884]
[1718350094376,3.0,3518.3,3517.4,2.2828]
[1718350094555,0.698,3518.4,3517.5,0.72885322]
[1718350094880,3.0,3519.3,3517.6,2.2828]
[1718350094881,2.4054,3519.1,3517.6,2.2828]
[1718350095086,0.698,3518.4,3517.7,0.03085143]
[1718350096799,0.698,3518.4,3517.6,2.2828]
[1718350097377,0.698,3518.2,3517.6,2.2828]
[1718350097901,0.698,3518.0,3517.6,2.2828]
[1718350098452,0.698,3518.0,3516.7,1.707]
[1718350098453,0.698,3518.0,3517.2,2.4092]
[1718350098658,3.07106269,3518.4,3517.2,2.4092]
[1718350098659,0.698,3517.8,3517.2,2.4092]
[1718350100488,0.07106904,3518.3,3517.3,0.03088729]
[1718350100704,0.698,3518.0,3517.3,0.03088729]
[1718350101599,0.698,3518.0,3517.2,2.4092]
[1718350105004,0.5543069,3518.2,3517.3,2.01432649]
[1718350105161,0.698,3518.1,3517.4,2.4859]
[1718350105367,2.385,3518.7,3517.5,0.03085464]
[1718350105687,0.698,3518.1,3517.5,0.03085464]
[1718350108891,0.071059,3518.5,3517.6,2.4042]
[1718350109096,2.385,3518.7,3517.7,0.03085175]
[1718350109272,0.698,3518.1,3517.7,0.03085175]
[1718350111309,0.698,3518.3,3517.8,2.2989]
[1718350111518,0.698,3518.5,3517.9,0.03085102]
[1718350111805,3.698,3518.5,3517.9,0.03085102]
[1718350112003,3.41790355,3518.8,3517.8,2.2989]
[1718350112004,0.698,3518.0,3517.8,2.2989]
[1718350112206,0.698,3518.0,3517.0,2.2989]
[1718350112503,0.698,3518.0,3517.2,2.3455]
[1718350112710,1.0678,3518.0,3517.2,3.77894514]
[1718350114579,1.0678,3518.0,3517.3,0.03086808]
[1718350114915,0.3698,3518.0,3517.3,0.03086808]
[1718350115099,0.698,3518.1,3517.4,2.4253]
[1718350115433,0.698,3518.1,3517.5,0.03086777]
[1718350116372,3.0,3518.3,3517.5,0.03086777]
[1718350116604,0.698,3518.4,3517.6,2.2908]
[1718350116805,1.31762,3518.4,3517.7,0.03085483]
[1718350117015,0.61962,3518.4,3517.7,0.03085483]
[1718350117217,0.698,3518.3,3517.7,0.03085483]
[1718350117416,0.61962,3518.4,3517.7,0.03085483]
[1718350117614,0.698,3518.4,3517.7,0.03085483]
[1718350117778,0.41790355,3518.8,3517.8,2.2896]
[1718350117779,0.698,3518.2,3517.8,2.2896]
[1718350119015,0.41790355,3518.8,3517.9,0.03085502]
[1718350119217,0.698,3518.4,3517.9,0.03085502]
[1718350119723,0.698,3518.4,3518.0,2.2621]
[1718350120026,0.41790355,3518.8,3518.1,0.03084181]
[1718350120516,1.11590355,3518.8,3518.1,0.03084181]
[1718350120823,0.698,3518.8,3518.1,0.03084181]
[1718350121814,0.07105265,3518.9,3518.1,0.03084181]
[1718350122116,0.698,3518.7,3518.1,0.03084181]
[1718350127346,0.698,3518.5,3518.0,2.2621]
[1718350129011,0.698,3518.3,3517.7,2.2809]
[1718350130012,0.07105279,3518.4,3517.4,2.2833]
[1718350130013,0.698,3518.1,3517.4,2.2833]
[1718350130212,0.698,3518.1,3517.5,1.11567451]
[1718350132227,0.698,3518.1,3517.4,2.2833]
[1718350134498,2.9558,3518.1,3517.4,2.2833]
[1718350136594,2.9558,3518.1,3517.5,0.03087587]
[1718350137386,2.9558,3518.1,3517.4,2.2833]
[1718350137700,0.698,3517.9,3516.9,2.4421]
[1718350137904,0.698,3517.9,3517.0,3.20172739]
[1718350138261,3.0,3518.5,3517.6,0.698]
[1718350138484,0.698,3518.5,3517.7,2.4880531]
[1718350138696,0.698,3518.5,3517.8,0.03085326]
[1718350140950,3.698,3518.6,3517.8,0.03085326]
[1718350141114,3.0,3518.5,3517.9,0.31860533]
[1718350141321,0.698,3518.6,3518.0,0.03083825]
[1718350142247,0.698,3518.4,3517.7,2.4572]
[1718350144207,0.698,3518.4,3517.8,0.03083907]
[1718350144403,0.698,3518.4,3517.8,0.24880391]
[1718350145945,0.698,3518.5,3518.0,2.3472]
[1718350146119,0.698,3518.5,3518.1,0.0308381]
[1718350149977,0.698,3518.5,3517.8,2.64640391]
[1718350150585,3.698,3518.5,3517.8,2.64640391]
[1718350151137,3.698,3518.5,3517.9,0.03083818]
[1718350151887,3.698,3518.5,3517.9,0.29856239]
[1718350152083,0.698,3518.5,3517.9,0.29856239]
[1718350153167,3.0,3518.7,3517.9,0.29856239]
[1718350153372,3.0772,3518.8,3517.9,1.73200753]
[1718350153571,3.0,3518.7,3518.1,2.3331]
[1718350153906,0.698,3518.8,3518.2,0.03082329]
[1718350155884,0.698,3518.8,3518.1,2.3331]
[1718350156081,3.1348,3518.6,3517.6,2.4259]
[1718350156303,0.698,3518.4,3517.7,1.98344514]
[1718350163648,0.698,3518.4,3517.7,1.43344514]
[1718350166126,0.698,3518.2,3517.1,2.30072246]
[1718350166331,2.9966,3518.2,3517.2,6.03257569]
[1718350167330,0.698,3518.0,3517.2,2.288]
[1718350167529,0.698,3517.6,3516.9,2.4539]
[1718350167734,0.698,3517.6,3516.9,3.88734514]
[1718350170739,0.698,3517.1,3516.5,4.0606]
[1718350170938,0.698,3517.1,3516.6,1.98344514]
[1718350171153,0.698,3517.1,3516.5,2.3536]
[1718350171450,0.698,3517.1,3516.5,1.43344514]
[1718350173431,2.3708,3517.2,3516.5,1.43344514]
[1718350173630,0.698,3517.0,3516.1,2.3145]
[1718350173876,0.698,3517.0,3516.2,1.98344514]
[1718350174035,0.698,3517.0,3516.2,2.04593265]
[1718350177635,0.698,3517.0,3516.3,0.03093001]
[1718350177932,2.365,3517.0,3516.4,0.06215241]
[1718350178134,1.0043,3516.9,3516.4,0.06215241]
[1718350178374,2.365,3517.0,3516.5,0.03093421]
[1718350179817,2.3836,3517.4,3516.5,1.46437935]
[1718350180197,3.0816,3517.4,3516.5,1.46437935]
[1718350180518,3.0,3517.3,3516.5,1.46437935]
[1718350183622,3.0,3517.3,3516.5,2.16237935]
[1718350183821,2.4277,3517.7,3516.7,0.698]
[1718350184026,2.4277,3517.7,3516.8,2.01433748]
[1718350185219,2.4277,3517.7,3516.8,1.98344514]
[1718350185416,5.4277,3517.7,3516.8,1.98344514]
[1718350186320,5.4277,3517.7,3516.8,2.69142345]
[1718350186826,0.698,3517.6,3516.8,1.98344514]
[1718350187124,3.698,3517.6,3516.8,1.98344514]
[1718350187294,3.698,3517.6,3516.8,1.43344514]
[1718350198558,3.698,3517.6,3516.6,3.38933794]
[1718350198756,3.698,3517.6,3516.7,0.03090804]
[1718350200259,3.0,3517.6,3516.9,2.3275]
[1718350200566,2.3346,3518.1,3517.2,0.698]
[1718350200722,3.0,3519.0,3517.0,2.01432898]
[1718350200723,2.3346,3518.6,3517.4,0.698]
[1718350201065,2.3346,3518.6,3517.5,1.46430329]
[1718350201387,2.4118,3518.9,3517.8,0.698]
[1718350201662,0.698,3518.8,3517.9,0.03082728]
[1718350201862,2.4118,3518.9,3517.9,0.03082728]
[1718350202023,0.698,3518.7,3517.9,0.03082728]
[1718350202225,0.698,3518.7,3517.8,1.43344514]
[1718350202425,0.698,3518.7,3517.6,2.64163033]
[1718350202426,0.698,3518.5,3517.6,2.64163033]
[1718350202620,0.698,3518.5,3517.7,1.43344514]
[1718350204069,0.698,3518.5,3517.8,0.03083706]
[1718350204439,3.24118,3518.8,3517.8,0.03083706]
[1718350204643,0.698,3518.7,3517.8,0.03083706]
[1718350206580,3.0,3518.8,3518.0,2.3853]
[1718350206739,0.698,3518.8,3518.1,0.03082724]
[1718350208653,0.698,3518.6,3518.1,0.03082724]
[1718350208854,0.698,3518.6,3518.0,2.3853]
[1718350209061,0.698,3518.6,3517.7,2.2785]
[1718350209062,0.698,3518.4,3517.7,2.2785]
[1718350209258,0.698,3518.4,3517.7,3.71194514]
[1718350210371,2.3583,3518.6,3517.4,2.3361]
[1718350210372,0.698,3518.2,3517.4,2.3361]
[1718350210740,3.34458051,3518.5,3517.4,2.3361]
[1718350210943,0.698,3518.1,3517.4,2.3361]
[1718350212652,0.698,3518.3,3517.5,0.03085931]
[1718350213180,3.698,3518.5,3517.5,2.16230445]
[1718350213387,3.698,3518.5,3517.6,2.05398559]
[1718350213580,3.0,3518.4,3517.7,2.40513775]
[1718350213743,0.698,3518.5,3517.8,0.03084035]
[1718350213943,0.698,3518.3,3517.7,3.80774514]
[1718350215571,0.698,3518.3,3517.8,0.03084046]
[1718350215808,0.698,3518.3,3517.8,0.47675307]
[1718350215976,0.07105432,3518.8,3517.8,0.47675307]
[1718350216138,0.698,3518.4,3517.8,0.03084046]
[1718350216782,3.0,3518.9,3517.8,1.4642856]
[1718350217078,0.698,3518.6,3517.9,2.4753]
[1718350217376,0.698,3518.6,3518.0,0.03083136]
[1718350219111,0.698,3518.5,3518.0,0.03083136]
[1718350221285,0.698,3518.5,3517.9,2.4753]
[1718350221444,0.698,3518.3,3517.9,2.4753]
[1718350222399,0.698,3518.1,3517.5,2.3728]
[1718350222563,0.698,3518.1,3517.5,3.80624514]
[1718350222760,0.698,3518.1,3517.5,2.3728]
[1718350223058,0.698,3518.1,3516.9,2.30072246]
[1718350223059,0.698,3517.7,3517.1,2.4053]
[1718350223334,0.698,3517.7,3517.1,5.14240569]
[1718350223903,0.698,3517.9,3517.1,5.14240569]
[1718350224205,0.07106674,3518.2,3517.1,5.14240569]
[1718350224496,0.698,3518.0,3517.1,5.14240569]
[1718350227585,0.698,3518.0,3517.1,3.83874514]
[1718350228692,0.698,3518.0,3517.1,4.53674514]
[1718350229516,3.0,3518.3,3517.4,2.4879]
[1718350229695,0.54840512,3518.7,3517.5,1.43344514]
[1718350229895,0.698,3518.3,3517.5,1.43344514]
[1718350230596,0.698,3518.3,3517.6,0.03084828]
[1718350230780,0.698,3518.3,3517.5,1.43344514]
[1718350231394,0.698,3518.3,3517.6,0.03084832]
[1718350231577,0.698,3518.3,3517.5,1.43344514]
[1718350231775,0.698,3518.3,3517.6,0.63263451]
[1718350232225,0.698,3518.3,3517.7,0.03084832]
[1718350232514,0.60211051,3518.6,3517.7,0.03084832]
[1718350232714,0.698,3518.4,3517.7,1.46429346]
[1718350232877,0.698,3518.4,3517.9,2.4397]
[1718350233079,0.698,3518.4,3518.0,0.03083902]
[1718350233676,0.698,3518.4,3517.9,2.4397]
[1718350233905,0.698,3518.4,3517.7,1.43344514]
[1718350234516,0.698,3518.2,3517.5,2.4347]
[1718350234725,0.698,3518.2,3517.5,3.86814514]
[1718350236323,0.698,3518.2,3517.5,3.36814514]
[1718350241591,2.2606,3518.4,3517.5,3.36814514]
[1718350241793,0.698,3518.3,3517.5,3.36814514]
[1718350243228,0.698,3518.3,3517.6,0.57731451]
[1718350243437,0.698,3518.3,3517.5,3.36814514]
[1718350244344,3.0,3518.5,3517.5,3.36814514]
[1718350244642,3.698,3518.5,3517.6,0.03084731]
[1718350245118,3.698,3518.5,3517.5,3.36814514]
[1718350245639,3.698,3518.5,3517.6,0.03084735]
[1718350249745,3.698,3518.5,3517.5,3.36814514]
[1718350249938,0.65825754,3518.4,3517.5,3.36814514]
[1718350250559,0.698,3518.3,3517.5,3.36814514]
[1718350257669,0.698,3518.1,3517.5,3.36814514]
[1718350258964,2.9793,3518.3,3517.5,3.36814514]
[1718350259967,0.698,3518.1,3517.3,2.2524]
[1718350260133,0.698,3517.9,3517.3,2.2524]
[1718350260435,0.698,3518.1,3517.3,2.2524]
[1718350261234,0.76906498,3518.1,3517.3,2.2524]
[1718350261438,0.37141207,3518.0,3517.3,2.2524]
[1718350261739,0.698,3517.9,3517.3,2.2524]
[1718350266857,3.023,3517.9,3517.0,2.323]
[1718350267073,0.698,3517.7,3517.0,2.323]
[1718350267272,0.37141207,3518.0,3516.7,2.323]
[1718350267273,2.325,3517.5,3516.7,2.323]
[1718350267571,0.37141207,3518.0,3516.3,2.323]
[1718350267572,0.698,3516.9,3516.3,2.323]
[1718350272252,2.325,3517.0,3516.3,2.323]
[1718350272455,0.698,3516.9,3516.3,2.323]
[1718350273096,0.698,3517.1,3516.4,0.03094519]
[1718350274657,0.698,3517.1,3516.3,2.323]
[1718350275052,0.698,3516.9,3516.3,2.323]
[1718350276256,0.698,3516.9,3516.4,0.05317077]
[1718350276460,0.698,3516.9,3516.3,2.323]
[1718350276666,0.698,3516.9,3516.4,0.05317077]
[1718350276867,0.698,3516.9,3516.3,2.323]
[1718350277068,0.698,3516.9,3516.4,0.05317077]
[1718350277282,0.07108713,3517.3,3516.4,0.03094533]
[1718350277556,0.698,3516.9,3516.3,2.323]
[1718350277869,0.698,3516.9,3516.4,0.05317077]
[1718350278062,0.698,3516.9,3516.3,2.323]
[1718350278269,0.698,3516.9,3516.4,0.05317077]
[1718350278475,0.698,3516.9,3516.3,2.323]
[1718350278687,0.698,3516.9,3516.4,0.05317077]
[1718350278989,0.698,3516.9,3516.3,2.323]
[1718350279396,0.698,3516.9,3516.4,0.05317077]
[1718350279760,0.698,3516.9,3516.3,2.323]
[1718350280271,0.698,3516.9,3516.4,0.08411627]
[1718350280595,0.698,3516.9,3516.4,0.0309455]
[1718350280800,0.698,3516.9,3516.3,2.323]
[1718350281101,0.698,3516.9,3516.4,0.05317077]
[1718350281301,0.698,3516.9,3516.3,2.323]
[1718350281460,0.698,3516.9,3516.4,0.05317077]
[1718350281662,0.698,3516.9,3516.3,2.323]
[1718350281890,0.698,3516.9,3516.4,0.05317077]
[1718350282204,0.698,3516.7,3516.0,2.3741]
[1718350282412,0.698,3516.7,3516.0,3.80754514]
[1718350282559,0.698,3516.7,3516.1,0.05360163]
[1718350287523,0.698,3516.8,3516.1,0.05360163]
[1718350287797,1.01077878,3516.8,3516.1,0.05360163]
[1718350288975,1.01077878,3516.8,3516.0,3.80754514]
[1718350290065,0.07108883,3516.7,3516.0,2.3741]
[1718350291092,0.698,3516.6,3516.0,2.3741]
[1718350293607,1.01077878,3516.8,3516.0,2.3741]
[1718350296201,0.63694788,3516.7,3516.0,2.3741]
[1718350296591,0.698,3516.6,3516.0,2.3741]
[1718350297966,0.698,3516.4,3516.0,2.3741]
[1718350298209,0.07109402,3516.6,3515.6,2.3423]
[1718350298210,0.698,3516.2,3515.6,2.3423]
[1718350302192,0.76910064,3516.4,3515.6,2.3423]
[1718350303603,0.61281006,3516.3,3515.6,2.3423]
[1718350303806,0.6839105,3516.3,3515.6,2.3423]
[1718350304208,0.698,3516.2,3515.6,2.3423]
[1718350305491,0.07110046,3516.4,3515.6,2.3423]
[1718350305700,0.698,3516.2,3515.6,2.3423]
[1718350306903,0.07110053,3516.1,3515.6,2.3423]
[1718350307212,0.698,3515.8,3515.5,0.1221164]
[1718350308114,0.698,3515.6,3515.5,0.1221164]
[1718350308813,0.698,3515.8,3515.5,0.1221164]
[1718350309227,0.698,3515.6,3515.5,0.1221164]
[1718350309509,0.07111128,3515.7,3515.5,0.1221164]
[1718350309725,0.698,3515.6,3515.5,0.1221164]
[1718350313109,3.1111,3515.6,3515.5,0.1221164]
[1718350313441,6.1111,3515.6,3515.5,0.1221164]
[1718350313587,3.94880111,3515.6,3515.5,0.1221164]
[1718350313796,3.698,3515.6,3515.5,0.1221164]
[1718350314296,3.0,3515.6,3515.5,0.1221164]
[1718350314496,0.37691113,3515.8,3515.5,0.1221164]
[1718350314691,0.698,3515.6,3515.5,0.1221164]
[1718350314898,0.37691113,3515.8,3515.5,0.1221164]
[1718350315129,1.07491113,3515.8,3515.5,0.1221164]
[1718350315335,0.37691113,3515.8,3515.5,0.1221164]
[1718350315741,1.07491113,3515.8,3515.5,0.1221164]
[1718350315897,0.698,3516.1,3515.5,0.1221164]
[1718350316094,0.07110868,3516.4,3515.5,0.15312969]
[1718350316399,0.698,3516.4,3515.5,0.15312969]
[1718350316600,0.698,3516.2,3515.5,0.15312969]
[1718350317706,0.698,3516.3,3515.5,0.15312969]
[1718350317918,0.698,3516.3,3515.5,0.63710266]
[1718350319730,3.0,3516.8,3515.6,1.43344514]
[1718350319934,2.3065,3517.3,3515.7,3.9669]
[1718350320120,3.0,3517.6,3515.9,2.2599]
[1718350320121,0.698,3516.9,3515.9,2.2599]
[1718350320319,2.3065,3517.8,3516.3,2.3994]
[1718350320620,0.698,3517.3,3516.4,1.43344514]
[1718350320805,0.698,3517.3,3516.5,0.03092671]
[1718350321395,0.698,3517.1,3516.4,1.43344514]
[1718350322221,0.698,3516.9,3516.3,2.3994]
[1718350322623,0.698,3516.7,3516.3,2.3994]
[1718350323135,0.698,3516.7,3516.0,2.94283451]
[1718350323451,0.698,3516.2,3515.7,7.44]
[1718350323602,0.698,3516.0,3515.7,7.44]
[1718350323802,0.698,3516.0,3515.5,2.5480164]
[1718350324443,0.698,3516.2,3515.6,0.03099103]
[1718350326651,0.698,3516.0,3515.5,0.1221164]
[1718350326821,0.698,3515.8,3515.5,0.1221164]
[1718350327022,0.698,3516.0,3515.5,0.1221164]
[1718350330649,0.07110414,3516.4,3515.5,0.1221164]
[1718350330949,0.698,3516.1,3515.6,0.03101078]
[1718350331525,0.07110414,3516.4,3515.6,0.03101078]
[1718350331731,0.698,3516.3,3515.6,0.03101078]
[1718350331955,0.29529685,3517.4,3515.9,0.698]
[1718350332112,2.317,3517.5,3515.6,0.03099604]
[1718350332113,0.698,3517.1,3516.1,3.0986]
[1718350332322,0.698,3516.9,3516.1,3.83404514]
[1718350332558,0.07108691,3517.4,3516.1,3.83404514]
[1718350332736,0.698,3516.9,3516.1,3.83404514]
[1718350333468,0.07108691,3517.4,3516.1,3.83404514]
[1718350333625,0.698,3516.7,3516.1,3.83404514]
[1718350334257,0.698,3516.7,3516.1,2.4006]
[1718350335731,0.07109596,3516.6,3516.1,2.4006]
[1718350336759,0.698,3516.5,3515.7,2.3743]
[1718350337066,0.698,3516.5,3515.7,3.80774514]
[1718350337279,0.698,3516.3,3515.7,3.80774514]
[1718350337578,0.698,3515.8,3515.5,0.1221164]
[1718350337727,0.07110751,3516.2,3515.5,0.1221164]
[1718350337924,0.698,3516.3,3515.6,0.03100545]
[1718350338168,3.07110406,3516.8,3515.7,2.2923]
[1718350338371,0.698,3516.4,3515.7,2.2923]
[1718350338666,0.698,3516.5,3515.7,2.2923]
[1718350339030,0.76910208,3516.5,3515.7,2.2923]
[1718350339662,0.0711021,3516.7,3515.8,0.03099316]
[1718350339973,0.698,3516.5,3515.8,0.03099316]
[1718350340978,0.70097244,3516.7,3515.8,0.03099316]
[1718350341270,0.698,3516.6,3515.8,0.03099316]
[1718350341486,0.07109615,3517.0,3515.8,0.03099316]
[1718350341787,0.698,3516.6,3515.8,0.03099316]
[1718350342136,0.07109615,3517.0,3515.8,0.03099316]
[1718350342487,0.698,3516.6,3515.7,2.2923]
[1718350342633,0.698,3516.6,3515.7,4.20768678]
[1718350343335,0.07109622,3517.0,3515.8,1.46441949]
[1718350343857,0.698,3516.7,3515.8,1.46441949]
[1718350344170,0.698,3516.7,3515.8,1.43344514]
[1718350344464,0.698,3516.5,3515.8,1.43344514]
[1718350344630,0.698,3516.5,3515.7,2.77424164]
[1718350345166,0.698,3516.3,3515.7,2.77424164]
[1718350350102,3.07109984,3516.6,3515.7,2.77424164]
[1718350350254,0.698,3516.5,3515.8,0.03098689]
[1718350350576,0.07110016,3516.9,3515.8,1.75716652]
[1718350350782,0.698,3516.7,3515.8,1.75716652]
[1718350351985,0.07110016,3516.9,3515.9,0.698]
[1718350352164,0.698,3516.9,3516.0,2.31586499]
[1718350352366,0.76909332,3516.9,3516.0,2.31586499]
[1718350352569,0.76909332,3516.9,3516.0,2.78986945]
[1718350353250,0.698,3516.9,3516.0,2.78986945]
[1718350353449,0.76909353,3516.9,3516.0,2.78986945]
[1718350354090,0.698,3516.7,3516.0,2.75890446]
[1718350354277,0.698,3516.5,3516.0,2.2849]
[1718350356183,0.698,3516.3,3515.5,0.1221164]
[1718350356395,0.698,3516.3,3515.6,2.2773]
[1718350357156,0.07110058,3516.6,3515.6,2.2773]
[1718350357385,0.54919,3517.1,3516.0,0.698]
[1718350357569,0.76909297,3517.0,3516.1,0.03096389]
[1718350357777,1.20092127,3517.0,3516.1,0.03096389]
[1718350357985,0.76909297,3517.0,3516.1,0.03096389]
[1718350359254,0.698,3516.8,3516.1,0.03096389]
[1718350359457,0.07109336,3516.7,3515.9,2.256]
[1718350359698,0.07109336,3516.7,3515.9,3.68944514]
[1718350359989,0.698,3516.6,3515.9,3.68944514]
[1718350361591,0.698,3516.3,3515.9,2.256]
[1718350363310,0.698,3516.3,3515.6,2.3391]
[1718350364383,0.07110055,3516.5,3515.6,2.3391]
[1718350364559,0.698,3516.1,3515.6,2.3391]
[1718350364759,0.698,3515.9,3515.6,2.3391]
[1718350364965,0.698,3515.9,3515.5,0.1221164]
[1718350366793,0.07110764,3516.2,3515.5,0.1221164]
[1718350366959,0.698,3516.0,3515.5,0.1221164]
[1718350367159,0.07110766,3515.9,3515.5,0.1221164]
[1718350368204,0.698,3516.0,3515.5,0.1221164]
[1718350368423,0.76910767,3516.2,3515.5,1.11643914]
[1718350368576,5.4498,3516.9,3515.7,2.3375]
[1718350368900,0.698,3516.4,3515.7,2.3375]
[1718350370768,0.0711008,3516.7,3515.7,2.3375]
[1718350370959,0.92319088,3516.7,3515.7,2.3375]
[1718350374589,2.60219088,3516.7,3515.7,2.3375]
[1718350374777,3.0,3516.6,3515.7,2.3375]
[1718350375077,0.07110513,3516.5,3515.7,2.3375]
[1718350376363,2.374,3516.4,3515.5,0.1221164]
[1718350376560,0.07110372,3516.3,3515.5,0.1221164]
[1718350376988,0.07110372,3516.3,3515.6,0.03099835]
[1718350377410,0.07110373,3516.5,3515.6,0.03099835]
[1718350377581,0.07110373,3516.5,3515.7,2.2877]
[1718350380207,0.07110373,3516.5,3515.7,2.52868164]
[1718350380370,2.4453,3517.3,3515.9,2.3686]
[1718350380569,0.0710908,3517.2,3516.1,2.3686]
[1718350380810,0.07109055,3517.5,3516.2,0.03095618]
[1718350380968,0.41953906,3517.4,3516.2,0.03095618]
[1718350381173,0.07109075,3517.3,3516.2,0.03095618]
[1718350381394,0.07109075,3517.2,3516.2,0.03095618]
[1718350381905,0.07109075,3517.2,3516.1,2.3686]
[1718350382280,0.07109079,3517.3,3516.2,0.03095697]
[1718350382614,0.34906299,3517.2,3516.1,2.3686]
[1718350382779,0.07109078,3517.1,3516.1,2.3686]
[1718350386010,0.07109078,3517.1,3516.2,0.030957]
[1718350386509,0.07109078,3517.2,3516.2,0.030957]
[1718350386718,0.07109078,3517.0,3516.2,0.030957]
[1718350386873,0.07109078,3517.0,3516.3,0.38330021]
[1718350387688,0.07109079,3517.2,3516.3,0.38330021]
[1718350391281,0.07109079,3517.2,3516.3,0.41425335]
[1718350392125,0.07108972,3517.4,3516.4,3.88564514]
[1718350392331,0.07108972,3517.4,3516.5,0.63162435]
[1718350392882,0.699,3517.0,3516.5,0.63162435]
[1718350393932,0.699,3517.0,3516.5,0.60068985]
[1718350396201,0.699,3516.8,3516.5,0.60068985]
[1718350397674,0.699,3516.8,3516.5,0.63162797]
[1718350397941,0.699,3516.8,3516.6,0.49005733]
[1718350398161,0.699,3517.0,3516.6,0.49005733]
[1718350400217,0.699,3517.0,3516.4,3.88564514]
[1718350404748,0.699,3516.8,3516.4,2.4522]
[1718350410548,0.699,3516.6,3516.0,9.7209]
[1718350410749,0.699,3516.6,3516.0,2.2809]
[1718350410912,0.699,3516.6,3516.1,0.22809]
[1718350411113,0.07109492,3517.0,3516.1,0.22809]
[1718350411409,0.699,3516.6,3516.1,0.22809]
[1718350412208,0.07109492,3517.0,3516.1,0.22809]
[1718350412209,0.699,3516.8,3516.1,0.22809]
[1718350412513,0.77009494,3516.8,3516.1,0.22809]
[1718350413350,0.699,3516.8,3516.1,0.22809]
[1718350413527,0.77009494,3516.8,3516.1,0.22809]
[1718350414457,0.699,3516.8,3516.1,0.22809]
[1718350414628,0.77009495,3516.8,3516.1,0.22809]
[1718350415343,0.77009495,3516.8,3516.2,0.250899]
[1718350415542,0.699,3516.8,3516.2,0.250899]
[1718350415858,0.77009496,3516.8,3516.2,0.250899]
[1718350416739,0.699,3516.8,3516.2,0.250899]
[1718350416935,0.07109497,3516.7,3516.0,2.2809]
[1718350424564,0.699,3516.6,3516.0,2.2809]
[1718350424738,0.07109771,3516.5,3516.0,2.2809]
[1718350425336,0.699,3516.6,3516.0,2.2809]
[1718350426267,0.07109621,3516.5,3516.0,2.2809]
[1718350426428,0.07109621,3516.5,3516.0,2.59246041]
[1718350429258,0.699,3516.4,3516.0,2.2809]
[1718350429464,0.07110068,3516.3,3516.0,2.2809]